fUST/lending_fUST_20240213
["ID","MTS","AMOUNT","RATE_DAILY","PERIOD"]
[313878881,1707767452161,-1145.98,0.00026301,2]
[313878882,1707767452171,-752.94,0.00026301,2]
[313878883,1707767452181,-500.0,0.00026301,2]
[313878884,1707767452190,-1139.82,0.00026301,2]
[313878885,1707767452200,-500.0,0.00026301,2]
[313878886,1707767452210,-548.77,0.00026301,2]
[313878887,1707767452219,-500.0,0.00026301,2]
[313878888,1707767452229,-500.0,0.00026301,2]
[313878889,1707767452238,-500.0,0.00026301,2]
[313878890,1707767452248,-815.4,0.00026301,2]
[313878891,1707767452259,-500.0,0.00026301,2]
[313878892,1707767452270,-750.73,0.00026301,2]
[313878893,1707767452279,-776.46,0.00026301,2]
[313878894,1707767452289,-500.0,0.00026301,2]
[313878895,1707767452298,-1071.31,0.00026301,2]
[313878896,1707767452307,-681.89,0.00026301,2]
[313878897,1707767452317,-500.0,0.00026301,2]
[313878898,1707767452326,-857.73,0.00026301,2]
[313878899,1707767452335,-6539.82,0.00026301,2]
[313878900,1707767452345,-13316.36,0.00026301,2]
[313878901,1707767452355,-679.01,0.00026301,2]
[313878902,1707767452364,-500.0,0.00026301,2]
[313878903,1707767452374,-500.0,0.00026301,2]
[313878904,1707767452384,-500.0,0.00026301,2]
[313878905,1707767452393,-1352.14,0.00026301,2]
[313878906,1707767452403,-500.0,0.00026301,2]
[313878907,1707767452413,-500.0,0.00026301,2]
[313878908,1707767452422,-500.0,0.00026301,2]
[313878909,1707767452431,-500.0,0.00026301,2]
[313878910,1707767452440,-1113.6,0.00026301,2]
[313878911,1707767452449,-500.0,0.00026301,2]
[313878912,1707767452459,-500.0,0.00026301,2]
[313878913,1707767452468,-344.84267033,0.00026301,2]
[313878914,1707767452477,-1390.72,0.00026301,2]
[313878915,1707767452487,-660.39,0.00026301,2]
[313878916,1707767452496,-9702.55,0.00026301,2]
[313878917,1707767452506,-1077.11,0.00026301,2]
[313878918,1707767452515,-1348.77,0.00026301,2]
[313878919,1707767452526,-2050.16,0.00026301,2]
[313878920,1707767452536,-435.85331003,0.00026301,2]
[313878921,1707767452545,-7615.46,0.00026301,2]
[313878922,1707767452555,-837.3,0.00026301,2]
[313878923,1707767452564,-514.4,0.00026301,2]
[313878924,1707767452652,-500.0,0.00026301,2]
[313878925,1707767452662,-6036.93,0.00026301,2]
[313878926,1707767452671,-702.71,0.00026301,2]
[313878927,1707767452680,-536.81,0.00026301,2]
[313878928,1707767452689,-2586.35,0.00026301,2]
[313878929,1707767452698,-153.3462726,0.00026325,2]
[313878930,1707767452707,-200.0,0.00026486,15]
[313878931,1707767452716,-200.0,0.00026486,15]
[313878932,1707767452725,-368.0,0.00026486,15]
[313878933,1707767452734,-500.0,0.00026575,2]
[313878934,1707767452744,-500.0,0.00026575,2]
[313878935,1707767452753,-500.0,0.00026575,2]
[313878936,1707767452763,-500.0,0.00026575,2]
[313878937,1707767452773,-500.0,0.00026575,2]
[313878938,1707767452782,-4190.5,0.00026575,2]
[313878939,1707767452791,-1145.98,0.00026575,2]
[313878940,1707767452800,-752.94,0.00026575,2]
[313878941,1707767452809,-500.0,0.00026575,2]
[313878942,1707767452818,-1139.82,0.00026575,2]
[313878943,1707767452827,-500.0,0.00026575,2]
[313878944,1707767452836,-548.77,0.00026575,2]
[313878945,1707767452845,-500.0,0.00026575,2]
[313878946,1707767452855,-815.4,0.00026575,2]
[313878947,1707767452868,-500.0,0.00026575,2]
[313878948,1707767452878,-500.0,0.00026575,2]
[313878949,1707767452887,-750.73,0.00026575,2]
[313878950,1707767452898,-776.46,0.00026575,2]
[313878951,1707767452907,-500.0,0.00026575,2]
[313878952,1707767452916,-1071.31,0.00026575,2]
[313878953,1707767452925,-681.89,0.00026575,2]
[313878954,1707767452936,-500.0,0.00026575,2]
[313878955,1707767452945,-857.73,0.00026575,2]
[313878956,1707767452955,-6539.82,0.00026575,2]
[313878957,1707767452965,-13316.36,0.00026575,2]
[313878958,1707767452974,-679.01,0.00026575,2]
[313878959,1707767452983,-500.0,0.00026575,2]
[313878960,1707767452992,-500.0,0.00026575,2]
[313878961,1707767453003,-500.0,0.00026575,2]
[313878962,1707767453012,-1352.14,0.00026575,2]
[313878963,1707767453023,-500.0,0.00026575,2]
[313878964,1707767453032,-500.0,0.00026575,2]
[313878965,1707767453042,-500.0,0.00026575,2]
[313878966,1707767453051,-500.0,0.00026575,2]
[313878967,1707767453060,-1113.6,0.00026575,2]
[313878968,1707767453069,-500.0,0.00026575,2]
[313878969,1707767453078,-500.0,0.00026575,2]
[313878970,1707767453087,-1390.72,0.00026575,2]
[313878971,1707767453097,-660.39,0.00026575,2]
[313878972,1707767453106,-9702.55,0.00026575,2]
[313878973,1707767453116,-1077.11,0.00026575,2]
[313878974,1707767453125,-1348.77,0.00026575,2]
[313878975,1707767453135,-2050.16,0.00026575,2]
[313878976,1707767453144,-7615.46,0.00026575,2]
[313878977,1707767453153,-837.3,0.00026575,2]
[313878978,1707767453162,-514.4,0.00026575,2]
[313878979,1707767453171,-500.0,0.00026575,2]
[313878980,1707767453181,-6036.93,0.00026575,2]
[313878981,1707767453190,-702.71,0.00026575,2]
[313878982,1707767453199,-536.81,0.00026575,2]
[313878983,1707767453209,-2586.35,0.00026575,2]
[313878984,1707767453218,-2600.0,0.000266,2]
[313878985,1707767453228,-153.0,0.00026606,2]
[313878986,1707767453237,-153.0,0.00026606,2]
[313878987,1707767453246,-153.0,0.00026606,2]
[313878988,1707767453255,-153.0,0.00026606,2]
[313878989,1707767453265,-300.0,0.00026609,2]
[313878990,1707767453276,-153.3462726,0.00026716,2]
[313878991,1707767453286,-297.1171087,0.00026718,2]
[313878992,1707767453295,-284474.16824698,0.000268,2]
[313878993,1707767453304,-235.0,0.000268,2]
[313878994,1707767453313,-301060.30508932,0.000268,2]
[313878995,1707767453431,-613.358816,0.000268,2]
[313878996,1707767453443,-1000.0,0.000268,2]
[313878997,1707767453664,-280.4,0.00025797,2]
[313878998,1707767453675,-262.0,0.00025797,2]
[313878999,1707767453687,-592.26227544,0.00025797,2]
[313879000,1707767453696,-8099.31432144,0.000268,2]
[313879001,1707767453706,-500.0,0.00026849,2]
[313879002,1707767453716,-500.0,0.00026849,2]
[313879003,1707767453726,-500.0,0.00026849,2]
[313879004,1707767453735,-599.95,0.00026849,2]
[313879005,1707767453745,-500.0,0.00026849,2]
[313879006,1707767453754,-1145.98,0.00026849,2]
[313879007,1707767453763,-752.94,0.00026849,2]
[313879008,1707767453773,-500.0,0.00026849,2]
[313879009,1707767453783,-1139.82,0.00026849,2]
[313879010,1707767453792,-500.0,0.00026849,2]
[313879011,1707767453801,-548.77,0.00026849,2]
[313879012,1707767453810,-500.0,0.00026849,2]
[313879013,1707767453819,-815.4,0.00026849,2]
[313879014,1707767453828,-388.7152164,0.00026849,2]
[313879015,1707767453837,-500.0,0.00026849,2]
[313879016,1707767453847,-776.46,0.00026849,2]
[313879017,1707767453856,-500.0,0.00026849,2]
[313879018,1707767453869,-1071.31,0.00026849,2]
[313879019,1707767453878,-681.89,0.00026849,2]
[313879020,1707767453887,-500.0,0.00026849,2]
[313879021,1707767453896,-857.73,0.00026849,2]
[313879022,1707767453906,-6539.82,0.00026849,2]
[313879023,1707767453916,-13316.36,0.00026849,2]
[313879024,1707767453925,-679.01,0.00026849,2]
[313879025,1707767453935,-500.0,0.00026849,2]
[313879026,1707767453945,-500.0,0.00026849,2]
[313879027,1707767453955,-1352.14,0.00026849,2]
[313879028,1707767453964,-500.0,0.00026849,2]
[313879029,1707767453973,-500.0,0.00026849,2]
[313879030,1707767453982,-500.0,0.00026849,2]
[313879031,1707767453991,-500.0,0.00026849,2]
[313879032,1707767454000,-1113.6,0.00026849,2]
[313879033,1707767454010,-500.0,0.00026849,2]
[313879034,1707767454020,-500.0,0.00026849,2]
[313879035,1707767454029,-1390.72,0.00026849,2]
[313879036,1707767454038,-660.39,0.00026849,2]
[313879037,1707767454047,-9702.55,0.00026849,2]
[313879038,1707767454056,-1077.11,0.00026849,2]
[313879039,1707767454065,-1348.77,0.00026849,2]
[313879040,1707767454075,-2050.16,0.00026849,2]
[313879041,1707767454084,-7615.46,0.00026849,2]
[313879042,1707767454093,-837.3,0.00026849,2]
[313879043,1707767454102,-514.4,0.00026849,2]
[313879044,1707767454112,-500.0,0.00026849,2]
[313879045,1707767454121,-6036.93,0.00026849,2]
[313879046,1707767454130,-702.71,0.00026849,2]
[313879047,1707767454140,-536.81,0.00026849,2]
[313879048,1707767454150,-2586.35,0.00026849,2]
[313879049,1707767454159,-325.0,0.000269,12]
[313879050,1707767454169,-1000.0,0.00027,2]
[313879051,1707767454178,-5878.48004393,0.00027,2]
[313879052,1707767454187,-1000.0,0.00027,27]
[313879053,1707767454196,-500.0,0.00027,2]
[313879054,1707767454205,-2860.3925697,0.00027,2]
[313879055,1707767454215,-1134.66227544,0.00027017,2]
[313879056,1707767454224,-300.0,0.00027069,2]
[313879057,1707767454234,-620.03226241,0.00027098,2]
[313879058,1707767454244,-339.0,0.00027123,2]
[313879059,1707767454253,-500.0,0.00027123,2]
[313879060,1707767454262,-500.0,0.00027123,2]
[313879061,1707767454272,-500.0,0.00027123,2]
[313879062,1707767454281,-1145.98,0.00027123,2]
[313879063,1707767454291,-752.94,0.00027123,2]
[313879064,1707767454301,-500.0,0.00027123,2]
[313879065,1707767454313,-1139.82,0.00027123,2]
[313879066,1707767454322,-500.0,0.00027123,2]
[313879067,1707767454332,-548.77,0.00027123,2]
[313879068,1707767454341,-467.05,0.00027123,2]
[313879069,1707767454350,-815.4,0.00027123,2]
[313879070,1707767454360,-776.46,0.00027123,2]
[313879071,1707767454370,-500.0,0.00027123,2]
[313879072,1707767454379,-1071.31,0.00027123,2]
[313879073,1707767454389,-681.89,0.00027123,2]
[313879074,1707767454398,-857.73,0.00027123,2]
[313879075,1707767454408,-6539.82,0.00027123,2]
[313879076,1707767454417,-13316.36,0.00027123,2]
[313879077,1707767454426,-679.01,0.00027123,2]
[313879078,1707767454436,-500.0,0.00027123,2]
[313879079,1707767454527,-500.0,0.00027123,2]
[313879080,1707767454537,-1352.14,0.00027123,2]
[313879081,1707767454547,-500.0,0.00027123,2]
[313879082,1707767454557,-500.0,0.00027123,2]
[313879083,1707767454568,-500.0,0.00027123,2]
[313879084,1707767454577,-500.0,0.00027123,2]
[313879085,1707767454587,-1113.6,0.00027123,2]
[313879086,1707767454596,-319.05136745,0.00027123,2]
[313879087,1707767454605,-500.0,0.00027123,2]
[313879088,1707767454615,-1390.72,0.00027123,2]
[313879089,1707767454624,-660.39,0.00027123,2]
[313879090,1707767454634,-9702.55,0.00027123,2]
[313879091,1707767454643,-1077.11,0.00027123,2]
[313879092,1707767454653,-1348.77,0.00027123,2]
[313879093,1707767454662,-2050.16,0.00027123,2]
[313879094,1707767454671,-7615.46,0.00027123,2]
[313879095,1707767454681,-837.3,0.00027123,2]
[313879096,1707767454690,-514.4,0.00027123,2]
[313879097,1707767454699,-500.0,0.00027123,2]
[313879098,1707767454709,-6036.93,0.00027123,2]
[313879099,1707767454720,-702.71,0.00027123,2]
[313879100,1707767454728,-536.81,0.00027123,2]
[313879101,1707767454738,-2586.35,0.00027123,2]
[313879102,1707767454747,-50000.0,0.0002722,2]
[313879103,1707767454757,-159.16373702,0.00027254,2]
[313879104,1707767454766,-150.59144906,0.00027302,2]
[313879105,1707767454777,-1471.19840111,0.00027397,2]
[313879106,1707767454786,-500.0,0.00027397,2]
[313879107,1707767454796,-501.91807385,0.00027397,2]
[313879108,1707767454806,-499.454049,0.00027397,2]
[313879109,1707767454820,-105.825951,0.00027397,2]
[313879110,1707767454830,-500.0,0.00027397,14]
[313879111,1707767454840,-500.0,0.00027397,14]
[313879112,1707767454849,-503.40553294,0.00027397,14]
[313879113,1707767454860,-207.0,0.00027397,2]
[313879114,1707767454869,-430.14978013,0.00027397,2]
[313879115,1707767454879,-1145.98,0.00027397,2]
[313879116,1707767454889,-752.94,0.00027397,2]
[313879117,1707767454900,-54.87180877,0.00027397,2]
[313879118,1707767461250,5000.0,0.00016713,2]
[313879119,1707767461298,154.8915759,0.00015507,2]
[313879120,1707767462791,2614.61784531,0.00017058,2]
[313879121,1707767481253,1995.31960382,0.00016713,2]
[313879122,1707767483317,154.8915759,0.00015507,2]
[313879123,1707767509898,628.46541272,0.00015507,2]
[313879124,1707767516137,154.8915759,0.00015507,2]
[313879127,1707767532635,307.52571243,0.00015507,2]
[313879166,1707767844042,24900.0,0.00016222,2]
[313879177,1707767936484,285494.80244333,0.00016222,2]
[313879178,1707767952527,285494.80244333,0.00016222,2]
[313879179,1707767968480,60800.70639463,0.00016222,2]
[313879218,1707768454626,1355.430471,0.00014197,2]
[313879226,1707768505103,208.4807768,0.00014188,2]
[313879236,1707768518887,162.38458243,0.000151,2]
[313879272,1707768632625,-163.20812248,0.0001517,2]
[313879274,1707768632635,-247.4295258,0.00015171,2]
[313879276,1707768632644,-1435.05014516,0.00015171,2]
[313879278,1707768632654,-154.92253873,0.00015171,2]
[313879280,1707768632663,-679.0873968,0.00015172,2]
[313879282,1707768632673,-232.62797295,0.00015173,2]
[313879284,1707768632683,-154.92253873,0.00015174,2]
[313879287,1707768632693,-3328.17504216,0.00015174,2]
[313879288,1707768632702,-1032.83143889,0.00015175,3]
[313879290,1707768632711,-37093.81012526,0.00015175,2]
[313879292,1707768632720,-83993.39666499,0.00015179,2]
[313879295,1707768632730,-154.90705577,0.000152,2]
[313879296,1707768632740,-200.0,0.00015933,2]
[313879299,1707768632750,-1364.18230294,0.00016218,2]
[313879301,1707768632760,-206.88391794,0.00016219,2]
[313879303,1707768632770,-46948.05307097,0.00016222,2]
[313879305,1707768632781,-4582.63154322,0.00016222,2]
[313879420,1707768638795,-173163.41143451,0.00016222,2]
[313879421,1707768638805,-481.48241313,0.00017208,2]
[313879422,1707768638815,-645.43798017,0.0001723,2]
[313879423,1707768638825,-500.0,0.0001723,2]
[313879424,1707768638834,-260.20837825,0.0001723,2]
[313879425,1707768638843,-154.8915759,0.0001723,2]
[313879426,1707768638852,-154.8915759,0.0001723,2]
[313879427,1707768638862,-523.84984319,0.0001723,2]
[313879428,1707768638871,-280.0,0.00017527,2]
[313879429,1707768638880,-154.87609812,0.000176,2]
[313879430,1707768638890,-250.0,0.00019178,2]
[313879431,1707768638899,-169.0690966,0.00019178,2]
[313879432,1707768638908,-166.666666,0.00019178,2]
[313879433,1707768638917,-391.0,0.0001928,2]
[313879434,1707768638926,-166.666666,0.00019739,2]
[313879435,1707768639059,-500.0,0.00019863,2]
[313879436,1707768639071,-548.59140171,0.000199,2]
[313879437,1707768639081,-741.82846738,0.0002,2]
[313879438,1707768639089,-166.666666,0.000203,2]
[313879439,1707768639099,-750.0,0.00020547,2]
[313879440,1707768639108,-6684.48146792,0.00020589,2]
[313879441,1707768639122,-627.49748383,0.00020589,2]
[313879442,1707768639131,-209.95805058,0.00020797,2]
[313879443,1707768639141,-651.85853467,0.00020797,2]
[313879444,1707768639151,-154.90705577,0.00020797,2]
[313879445,1707768639160,-175.76112221,0.00020797,2]
[313879446,1707768639170,-324.18448095,0.00020797,2]
[313879447,1707768639178,-20933.53573456,0.00020797,2]
[313879448,1707768639188,-155.08995217,0.00020798,2]
[313879449,1707768639197,-1297.90163565,0.00020799,2]
[313879450,1707768639206,-8683.55680084,0.000208,2]
[313879451,1707768639218,-500.0,0.00020822,2]
[313879452,1707768639227,-434.89494355,0.00020822,2]
[313879453,1707768639236,-360.89941862,0.00020822,2]
[313879454,1707768639246,-166.666666,0.00020861,2]
[313879455,1707768639257,-155.66244284,0.00021,2]
[313879456,1707768639266,-4147.15320336,0.00021,2]
[313879457,1707768639279,-262.58095141,0.00021,2]
[313879469,1707768642016,-500.0,0.00021,2]
[313879470,1707768642028,-584.16392336,0.00021,2]
[313879471,1707768642037,-4949.66494411,0.00021,2]
[313879518,1707768643744,-763.59512221,0.00020999,2]
[313879521,1707768643756,-2866.55209145,0.00020999,2]
[313879523,1707768643765,-1833.44790855,0.00021,2]
[313879528,1707768643803,-13421.67635906,0.00021,2]
[313879530,1707768643812,-9895.79446713,0.00021,2]
[313879532,1707768643824,-195.02426221,0.00021,2]
[313879534,1707768643833,-294.73498546,0.00021012,2]
[313879536,1707768643842,-1962.08695395,0.00021012,2]
[313879538,1707768643851,-214.1569826,0.00021013,2]
[313879540,1707768643860,-1833.12108864,0.00021014,2]
[313879542,1707768643869,-154.8915759,0.00021014,2]
[313879544,1707768643878,-2092.52534233,0.00021014,2]
[313879546,1707768643887,-300.0,0.00021014,2]
[313879547,1707768643897,-7284.41984222,0.00021014,2]
[313879549,1707768643906,-200.0,0.00021207,7]
[313879551,1707768643915,-348.0,0.00021207,7]
[313879553,1707768643925,-968.3658084,0.00021232,2]
[313879555,1707768643934,-1355.430471,0.00021295,2]
[313879557,1707768643943,-166.666666,0.00021422,2]
[313879559,1707768643951,-548.59140171,0.00021846,2]
[313879561,1707768643960,-427.63664462,0.00022,2]
[313879563,1707768643970,-326.73535811,0.00022,2]
[313879565,1707768643979,-247.38920084,0.00022,4]
[313879567,1707768643988,-11888.52381892,0.00022,2]
[313879569,1707768643996,-5589.51410722,0.00022209,3]
[313879619,1707768646759,-261.0,0.00020999,2]
[313879622,1707768854017,2804.46,0.000151,2]
[313879633,1707769615103,206.70820157,0.000151,2]
[313879634,1707769619165,1019.11530917,0.00015099,2]
[313879673,1707769831830,-1733.97919696,0.00016335,2]
[313879674,1707769831840,-1435.05014516,0.00016336,2]
[313879675,1707769831850,-11646.54029448,0.00016337,2]
[313879676,1707769831888,-72346.85637051,0.00016337,2]
[313879677,1707769831897,-24900.0,0.00016338,2]
[313879679,1707769831906,-679.0873968,0.00016622,2]
[313879680,1707769831916,-262.0748117,0.00016622,2]
[313879681,1707769831925,-154.92253873,0.00016622,3]
[313879683,1707769831934,-179.34962307,0.00016623,2]
[313879684,1707769831943,-199.91116455,0.00016623,2]
[313879686,1707769831953,-1154.27023508,0.00016623,2]
[313879687,1707769831964,-1862.47681657,0.00016623,2]
[313879688,1707769831973,-2126.33205,0.00016625,2]
[313879689,1707769831982,-3821.142489,0.0001711,2]
[313879690,1707769831991,-200.0,0.00017153,2]
[313879691,1707769832001,-1017.6978086,0.0001798,2]
[313879692,1707769832010,-280.0,0.00018869,2]
[313879693,1707769832019,-961.86931894,0.000189,2]
[313879694,1707769832028,-168.984538,0.00019178,2]
[313879695,1707769832037,-168.11316,0.00019178,2]
[313879696,1707769832046,-2906.25135508,0.0001989,2]
[313879697,1707769832055,-168.11316,0.00019926,2]
[313879698,1707769832064,-168.11316,0.00020674,2]
[313879699,1707769832073,-250.0,0.00020687,2]
[313879700,1707769832082,-62329.91085741,0.00020688,2]
[313879721,1707769839038,-247.4295258,0.00016334,2]
[313879722,1707769839047,-17103.08,0.00020678,3]
[313879723,1707769839056,-213670.08914259,0.00020688,2]
[313879724,1707769839065,-478.25608293,0.00020697,2]
[313879725,1707769839074,-391.0,0.00020755,2]
[313879726,1707769839083,-678.66620229,0.00020797,2]
[313879727,1707769839092,-279.90301792,0.00020797,2]
[313879728,1707769839101,-2044.01644384,0.00020797,2]
[313879729,1707769839110,-7246.9201407,0.00020797,2]
[313879730,1707769839121,-155.76049146,0.00020797,2]
[313879731,1707769839130,-741.82846738,0.00020797,2]
[313879732,1707769839139,-2023.84254162,0.00020797,2]
[313879733,1707769839148,-165.98692502,0.00020797,2]
[313879734,1707769839157,-523.11414315,0.00020798,2]
[313879735,1707769839166,-8683.55680084,0.000208,2]
[313879736,1707769839175,-500.0,0.00020822,2]
[313879737,1707769839184,-183.33248648,0.00020822,2]
[313879738,1707769839194,-500.0,0.00020822,2]
[313879739,1707769839203,-500.0,0.00020822,2]
[313879740,1707769839214,-500.0,0.00020822,2]
[313879741,1707769839223,-500.0,0.00020822,2]
[313879742,1707769839232,-500.0,0.00020822,2]
[313879743,1707769839241,-500.0,0.00020822,2]
[313879744,1707769839250,-500.0,0.00020822,2]
[313879745,1707769839260,-500.0,0.00020822,2]
[313879746,1707769839269,-500.0,0.00020822,2]
[313879747,1707769839278,-500.0,0.00020822,2]
[313879748,1707769839287,-466.23216695,0.00020822,2]
[313879749,1707769839296,-280.78250802,0.00020822,2]
[313879751,1707769839306,-500.0,0.00020822,2]
[313879752,1707769839315,-500.0,0.00020822,2]
[313879753,1707769839324,-394.55888133,0.00020822,2]
[313879754,1707769839333,-500.0,0.00020822,2]
[313879755,1707769839342,-500.0,0.00020822,2]
[313879756,1707769839351,-500.0,0.00020822,2]
[313879757,1707769839361,-500.0,0.00020822,2]
[313879758,1707769839370,-500.0,0.00020822,2]
[313879759,1707769839379,-500.0,0.00020822,2]
[313879760,1707769839388,-500.0,0.00020822,2]
[313879761,1707769839397,-500.0,0.00020822,2]
[313879762,1707769839407,-500.0,0.00020822,2]
[313879763,1707769839416,-500.0,0.00020822,2]
[313879764,1707769839425,-500.0,0.00020822,2]
[313879765,1707769839434,-500.0,0.00020822,2]
[313879766,1707769839443,-500.0,0.00020822,2]
[313879767,1707769839453,-500.0,0.00020822,2]
[313879768,1707769839462,-500.0,0.00020822,2]
[313879769,1707769839472,-500.0,0.00020822,2]
[313879770,1707769839481,-1297.90163565,0.00020997,2]
[313879771,1707769839491,-214.1569826,0.00020997,2]
[313879772,1707769839500,-230.74207544,0.00020997,2]
[313879773,1707769839509,-228.01511839,0.00020997,2]
[313879774,1707769839520,-210.24376362,0.00020998,2]
[313879775,1707769839529,-15761.15875499,0.00020998,2]
[313879776,1707769839539,-14771.90879165,0.00020998,2]
[313879777,1707769839551,-508.16045888,0.00020998,2]
[313879778,1707769839560,-500.0,0.00020998,2]
[313879779,1707769839569,-500.0,0.00020998,2]
[313879780,1707769839579,-500.0,0.00020998,2]
[313879781,1707769839588,-210.12590851,0.00020998,2]
[313879782,1707769839597,-500.0,0.00020998,2]
[313879783,1707769839607,-500.0,0.00020998,2]
[313879784,1707769839617,-479.90422616,0.00020998,2]
[313879785,1707769839628,-539.16383773,0.00020998,2]
[313879786,1707769839637,-500.0,0.00020998,2]
[313879787,1707769839647,-500.0,0.00020998,2]
[313879788,1707769839657,-406.22690016,0.00020998,2]
[313879789,1707769839667,-500.0,0.00020998,2]
[313879790,1707769839676,-163.07789482,0.00020998,2]
[313879791,1707769839686,-500.0,0.00020998,2]
[313879792,1707769839695,-500.0,0.00020998,2]
[313879793,1707769839704,-500.0,0.00020998,2]
[313879794,1707769839713,-500.0,0.00020998,2]
[313879795,1707769839722,-221.1061651,0.00020998,2]
[313879796,1707769839731,-500.0,0.00020998,2]
[313879797,1707769839740,-500.0,0.00020998,2]
[313879798,1707769839749,-500.0,0.00020998,2]
[313879799,1707769839758,-500.0,0.00020998,2]
[313879800,1707769839767,-500.0,0.00020998,2]
[313879801,1707769839777,-352.31850098,0.00020998,2]
[313879802,1707769839786,-500.0,0.00020998,2]
[313879803,1707769839796,-500.0,0.00020998,2]
[313879804,1707769839805,-500.0,0.00020998,2]
[313879805,1707769839814,-500.0,0.00020998,2]
[313879806,1707769839823,-500.0,0.00020998,2]
[313879807,1707769839832,-500.0,0.00020998,2]
[313879808,1707769839841,-500.0,0.00020998,2]
[313879809,1707769839850,-500.0,0.00020998,2]
[313879810,1707769839860,-175.72696625,0.00020998,2]
[313879811,1707769839870,-383.88590839,0.00020999,3]
[313879812,1707769839881,-232.46188165,0.00020999,2]
[313879813,1707769839891,-2092.52534233,0.00020999,2]
[313879814,1707769839900,-155.78874147,0.00020999,2]
[313879815,1707769839909,-285494.80244333,0.00020999,2]
[313879816,1707769839919,-1000.40633568,0.00020999,2]
[313879817,1707769839929,-1833.12108864,0.00021,2]
[313879818,1707769839938,-300.0,0.00021,2]
[313879819,1707769839947,-500.0,0.00021372,2]
[313879820,1707769839956,-168.11316,0.00021422,2]
[313879821,1707769839966,-300.0,0.00021645,2]
[313879822,1707769839975,-916.13744664,0.00021655,2]
[313879823,1707769839984,-326.73535811,0.00022,2]
[313879824,1707769839993,-427.63664462,0.00022,2]
[313879825,1707769840002,-750.0,0.00022057,2]
[313879826,1707769840011,-478.25608286,0.00022109,2]
[313879827,1707769840021,-155.41385833,0.00022218,2]
[313879828,1707769840030,-337.25161038,0.00022233,2]
[313879829,1707769840039,-13108.9235423,0.00022243,2]
[313879830,1707769840049,-504.67581623,0.00022243,2]
[313879831,1707769840058,-45274.33391119,0.00022243,2]
[313879832,1707769840067,-8168.75290139,0.00022243,2]
[313879834,1707769840076,-26738.45735821,0.00022247,2]
[313879835,1707769840085,-300.0,0.00022293,2]
[313879837,1707769840094,-1058.61634231,0.00022742,2]
[313879839,1707769840103,-414.67799332,0.00022792,3]
[313879841,1707769840112,-161.92013867,0.00022792,3]
[313879842,1707769840122,-7813.24566423,0.00022809,3]
[313879843,1707769840131,-200.0,0.00022831,7]
[313879844,1707769840140,-348.0,0.00022831,7]
[313879845,1707769840149,-3176.71266069,0.00022839,3]
[313879846,1707769840158,-1500.8396201,0.00022854,3]
[313879847,1707769840171,-766.41436871,0.00022854,3]
[313879848,1707769840189,-4181.6759894,0.00022886,3]
[313879849,1707769840198,-300.0,0.000229,10]
[313879850,1707769840207,-300.0,0.0002294,2]
[313879851,1707769840216,-9976.71224854,0.00023,2]
[313879852,1707769840225,-1264.21341125,0.00023,2]
[313879853,1707769840234,-478.25608286,0.0002352,2]
[313879854,1707769840243,-300.0,0.00023588,2]
[313879855,1707769840252,-961.86931894,0.000239,2]
[313879856,1707769840261,-3918.12632401,0.00024,2]
[313879857,1707769840270,-1000.0,0.00024027,3]
[313879858,1707769840279,-158.431477,0.00024198,2]
[313879859,1707769840288,-166.49674,0.00024198,2]
[313879860,1707769840297,-300.0,0.00024235,2]
[313879861,1707769840306,-300.0,0.000244,11]